[Event "10th Floripa Open 2024"]
[Site "Florianopolis"]
[Date "2024.01.23"]
[Round "4.6"]
[White "Rodriguez Vila, Andres"]
[Black "De Siqueira, Luigy Lira"]
[Result "1-0"]
[ECO "D00"]
[WhiteElo "2407"]
[BlackElo "2230"]
[Annotator "TA"]
[PlyCount "117"]
[EventDate "2024.01.10"]
[EventType "swiss"]
[EventCountry "BRA"]
[SourceTitle "playchess.com"]
[Source "ChessBase"]
[SourceQuality "1"]
[TimeControl "5400+30"]

{[%evp 9,117,-20,-31,-23,-29,-35,-33,-42,-13,-52,-59,-45,-51,-50,-45,-58,-62,-58,-33,-51,-25,-34,-33,-35,-23,-26,-17,-16,-20,-18,-16,-22,-21,-22,0,-14,0,-54,-56,-50,-48,-64,-50,-78,-41,-107,-39,-44,0,-4,22,22,57,16,36,20,6,-20,-19,-27,0,0,0,-114,-22,-115,-75,-91,39,26,68,79,72,83,76,56,50,0,98,0,0,0,0,0,104,0,296,0,0,-234,833,-236,-265,-235,144,179,208,208,172,0,976,1039,1008,936,2333,2210,29974,29975,29987,29988]} 1. d4 {[%emt 0:03:46]} d5 {[%emt 0:06:25]} 2. Nc3 {[%emt 0:00:07]} Nf6 {[%emt 0:00:25]} 3. Bf4 {[%emt 0:00:05]} e6 {[%emt 0:02:31]} 4. e3 {[%emt 0:00:06]} Bb4 {[%emt 0:00:21]} 5. Nge2 {[%emt 0:01:33]} O-O {[%emt 0:03:46]} 6. a3 {[%emt 0:00:30] D00: 1 d4 d5: Unusual lines.} Be7 {[%emt 0:00:17]} 7. h3 {[%emt 0:03:18]} c5 {[%emt 0:01:47]} 8. g4 {[%emt 0:00:08] Black is slightly better.} Nc6 {[%emt 0:00:20]} 9. Bg2 {[%emt 0:00:05]} b6 {[%emt 0:07:35] [#]} 10. O-O $146 {[%emt 0:00:46]} ({Predecessor:} 10. e4 dxe4 11. dxc5 bxc5 12. Qxd8 Rxd8 13. g5 Nh5 14. Bxe4 Bb7 15. Bd2 f5 16. gxf6 Nxf6 17. Bxc6 Bxc6 {½-½ Dittmar,P-Kerker,A Team-ch L15K1-R(4-5) 2017}) 10... Ba6 {[%emt 0:00:27]} 11. Re1 {[%emt 0:02:01]} Rc8 {[%emt 0:00:18]} 12. Nc1 {[%emt 0:02:02][%cal Be2c1,Bc1d3,Bd3e5][%mdl 32]} cxd4 {[%emt 0:00:55]} 13. exd4 {[%emt 0:00:08]} Ne8 {[%emt 0:00:21]} 14. N3e2 {[%emt 0:02:37]} Bf6 {[%emt 0:12:21]} 15. c3 {[%emt 0:04:57]} Nd6 {[%emt 0:00:20]} 16. Nd3 {[%emt 0:01:00]} Nc4 {[%emt 0:05:01]} 17. Bh2 {[%emt 0:04:40]} N6a5 {[%emt 0:16:15]} 18. Nef4 {[%emt 0:01:10]} g6 {[%emt 0:04:01]} 19. a4 {[%emt 0:02:10]} Nd6 {[%emt 0:00:57]} 20. Ne5 {[%emt 0:04:59]} Bb7 {[%emt 0:09:05]} 21. Bf1 {[%emt 0:03:42]} Nac4 {[%emt 0:04:38]} 22. Qc2 {[%emt 0:01:48]} Bg7 {[%emt 0:02:56]} 23. Rad1 {[%emt 0:03:31]} ({Better is} 23. Nxc4 $11 Nxc4 24. Nd3) 23... Nxe5 $1 $15 {[%emt 0:06:04]} 24. dxe5 {[%emt 0:00:04]} Nc4 {[%emt 0:00:12]} 25. Ng2 {[%emt 0:02:14]} Qc7 {[%emt 0:03:13][%cal Rg7e5]} 26. f4 {[%emt 0:00:15]} Rfd8 {[%emt 0:06:53][%cal Od5d4]} (26... Qc5+ {seems wilder.} 27. Kh1 d4 28. Bg1 Ne3) 27. Kh1 {[%emt 0:00:27]} ({White should play} 27. Bg3 $15) 27... Bf8 {[%emt 0:04:40]} (27... d4 $1 $17 {aiming for ...Ne3.} 28. cxd4 Qc6) 28. Bg1 {[%emt 0:02:31] Wards off Ne3} Re8 {[%emt 0:01:21]} 29. Bd4 {[%emt 0:00:27]} Bg7 {[%emt 0:00:42]} 30. h4 {[%emt 0:01:43]} Qe7 {[%emt 0:00:27]} 31. Qf2 {[%emt 0:01:06]} f6 {[%emt 0:00:20]} 32. exf6 {[%emt 0:02:10]} Bxf6 {[%emt 0:00:02]} 33. a5 {[%emt 0:09:04][%cal Ra5b6]} Bxd4 {[%emt 0:00:26]} (33... Nxa5 $6 34. Bxf6 Qxf6 35. Kg1 $15) 34. cxd4 {[%emt 0:03:12][%cal Oa5a6]} Nd6 {[%emt 0:00:47]} (34... Nxa5 $6 35. Bb5 Rf8 36. Qe2 $17) 35. a6 {[%emt 0:02:43]} Bc6 {[%emt 0:00:13]} 36. Re5 {[%emt 0:01:29]} (36. Rc1 $11) 36... Ne4 {[%emt 0:00:52]} (36... Ba4 $1 $17 {[%cal Ra4d1]} 37. Ra1 Bc2) 37. Qe3 {[%emt 0:00:15]} (37. Qe1 $1 $11) 37... Ba4 {[%emt 0:00:19]} 38. b3 {[%emt 0:01:13]} Rc3 {[%emt 0:00:50]} (38... Bd7 $1 $17 {Hoping for ...Rc2.} 39. Bd3 Rc3) 39. Rd3 $14 {[%emt 0:00:12]} Rc2 {[%emt 0:00:52]} (39... Bxb3 $2 40. Rxc3 Nxc3 41. Qxc3 $18) 40. bxa4 {[%emt 0:00:46] Threatens to win with Kg1.} Nf2+ {[%emt 0:00:04]} 41. Kg1 {[%emt 0:00:24][%cal Of1e2]} Nxg4 {[%emt 0:00:06]} 42. Qe1 {[%emt 0:10:02]} (42. Qg3 {is interesting.} Nxe5 43. fxe5 Rf8 44. Nf4) 42... Nxe5 {[%emt 0:00:04]} 43. fxe5 {[%emt 0:00:14]} ({White should try} 43. Qxe5 $14 Qg7 44. Qe3) 43... Rec8 {[%emt 0:00:57]} (43... Rf8 $11 {keeps the balance.}) 44. Rd1 {[%emt 0:01:16]} (44. Qg3 $16) 44... Qa3 {[%emt 0:00:44][%cal Oa3f3]} 45. Bd3 {[%emt 0:04:26]} Rc1 {[%emt 0:00:15]} 46. Kh2 {[%emt 0:00:11]} R1c3 {[%emt 0:00:50] [#]} (46... Qa1 $11 47. Rxc1 Rxc1) 47. Qe2 {[%emt 0:02:32]} (47. Qe3 $1 $16) 47... Qxa4 $2 {[%emt 0:00:17][%mdl 8192]} (47... Rf8 $1 $11) 48. Bb5 $2 {[%emt 0:01:08]} (48. Qg4 $18 {And now h5 would win.} Qd7 49. Nf4) 48... Qb3 $11 {[%emt 0:00:51]} 49. Bd7 $2 {[%emt 0:01:13]} (49. Qg4 $11 {and White has nothing to worry.} Qxb5 50. Qxe6+ Kh8 51. Qf6+ Kg8 52. Qe6+ Kh8 53. Qf6+ Kg8 54. Qe6+) 49... Rh3+ $19 {[%emt 0:00:27]} 50. Kg1 {[%emt 0:00:03]} Rc2 {[%emt 0:00:01]} 51. Qg4 {[%emt 0:05:03]} (51. Bxe6+ $2 Kg7 52. Bxd5 Rh1+ 53. Kxh1 Qh3+ 54. Kg1 Rxe2 $19) 51... Rg3 $2 {[%emt 0:00:30]} (51... Rxg2+ 52. Kxg2 Kg7 53. Rf1 $18 (53. Qxh3 Qc2+ 54. Kg3 Qxd1 $11)) (51... Kg7 $19 {( -> ...Rg3)} 52. Ba4 Rg3 53. Qxg3 Qxg3 54. Bxc2 Qf3) 52. Qxe6+ $16 {[%emt 0:00:15]} Kg7 {[%emt 0:00:04]} 53. Qf6+ {[%emt 0:00:14]} Kh6 {[%emt 0:00:06] [#]} 54. Qf4+ $2 {[%emt 0:01:12]} ({Only move:} 54. Rd2 $1 $18 {[%cal Rd2c2] Black must now prevent Rxc2.} Rxd2 55. Qf4+ Kg7 56. Qxd2) 54... Kh5 $2 {[%emt 0:00:01][%mdl 8192]} (54... Kg7 $11 55. Qf6+ Kh6) 55. Rd2 $18 {[%emt 0:00:39] White wants to mate with Rxc2.} Rcc3 {[%emt 0:02:29]} 56. Qf7 {[%emt 0:02:25][%cal Rf7h7]} ({But not} 56. Kh2 $2 Rcf3 $19) 56... h6 {[%emt 0:00:54]} 57. Rf2 {[%emt 0:00:12] Threatening mate with Rf5+.} Rcf3 {[%emt 0:00:31]} 58. Rxf3 {[%emt 0:01:06][%mdl 64] Remove Defender} Rxf3 {[%emt 0:00:01]} 59. Nf4+ {[%emt 0:12:25] Excellently played by Rodriguez Vila!   Weighted Error Value: White=0.43/Black=0.55} 1-0

[Event "10th Floripa Open 2024"]
[Site "Florianopolis"]
[Date "2024.01.23"]
[Round "4.7"]
[White "Rodi, Luis Ernesto"]
[Black "Do Valle Cardoso, Lucas"]
[Result "1/2-1/2"]
[ECO "B99"]
[WhiteElo "2196"]
[BlackElo "2392"]
[Annotator "TA"]
[PlyCount "65"]
[EventDate "2024.01.10"]
[EventType "swiss"]
[EventCountry "BRA"]
[SourceTitle "playchess.com"]
[Source "ChessBase"]
[SourceQuality "1"]
[TimeControl "5400+30"]

{[%evp 22,65,68,54,57,37,28,46,56,0,0,0,0,0,0,-35,0,-62,-59,-56,0,0,0,0,0,0,0,0,0,0,0,0,0,0,0,0,0,0,0,0,22,0,0,0,0,0]} 1. e4 {[%emt 0:13:59]} c5 {[%emt 0:00:09]} 2. Nf3 {[%emt 0:00:04]} d6 {[%emt 0:00:09]} 3. d4 {[%emt 0:00:06]} cxd4 {[%emt 0:00:10]} 4. Nxd4 {[%emt 0:00:03]} Nf6 {[%emt 0:00:28]} 5. Nc3 {[%emt 0:00:06]} a6 {[%emt 0:00:04]} 6. Bg5 {[%emt 0:00:31]} e6 {[%emt 0:00:21]} 7. f4 {[%emt 0:00:07]} Be7 {[%emt 0:00:18]} 8. Qf3 {[%emt 0:00:07]} Qc7 {[%emt 0:00:22]} 9. O-O-O {[%emt 0:00:09]} Nbd7 {[%emt 0:00:07]} 10. g4 {[%emt 0:00:07][%cal Bg2g4,Bg4g5][%mdl 32]} h6 {[%emt 0:00:52][%cal Bh7h6,Bh6g5][%mdl 32]} 11. Bxf6 {[%emt 0:01:08]} Bxf6 {[%emt 0:02:59]} 12. h4 $1 {[%emt 0:00:45] White is more active.} Nb6 {[%emt 0:01:07] B99: Sicilian Najdorf: 6 Bg5 e6 7 f4 Be7 8 Qf3 Qc7 9 0-0-0 Nbd7.} 13. g5 {[%emt 0:01:15]} Bxd4 {[%emt 0:00:06]} 14. Rxd4 {[%emt 0:00:09]} Qc5 {[%emt 0:00:03] White is slightly better.} 15. Qd3 {[%emt 0:05:07]} ({White should try} 15. Rd2 $14) 15... hxg5 $1 $11 {[%emt 0:21:17]} 16. Rxd6 {[%emt 0:04:06] [#] Rd8+ is the strong threat.} Rxh4 {[%emt 0:12:46]} 17. Rxh4 {[%emt 0:05:47]} gxh4 {[%emt 0:00:34]} 18. Rd8+ {[%emt 0:01:00]} Ke7 {[%emt 0:00:07] [#] And now ...Qc7 would win.} 19. Rh8 $146 {[%emt 0:00:07]} (19. Rd4 $11) ({Predecessor:} 19. Rg8 Bd7 20. Rxg7 Rd8 21. f5 Qf2 22. Rg2 Qf4+ 23. Rd2 Rc8 24. Bg2 Rg8 25. Ne2 {0-1 Schmider,N (2344)-Tschann,S (2223) Oberliga Baden 2122 2021 (3.3)}) 19... Bd7 $15 {[%emt 0:01:49]} 20. Rxh4 {[%emt 0:01:24][%cal Bh8h4,Bh4g4,Bg4g7][%mdl 32]} Qf2 {[%emt 0:02:20] Against Rh2} (20... Bb5 $1 $15 21. Nxb5 axb5) 21. Rg4 $1 $11 {[%emt 0:01:07] The position is equal.} Bb5 {[%emt 0:17:31]} 22. Nxb5 {[%emt 0:13:30]} axb5 {[%emt 0:00:22]} 23. Qe2 {[%emt 0:02:15] Dodges Nc4} Qxe2 {[%emt 0:03:06]} 24. Bxe2 {[%emt 0:00:07]} Rxa2 {[%emt 0:04:51]} 25. Rxg7 {[%emt 0:01:07]} Nc4 {[%emt 0:01:40]} 26. Bxc4 {[%emt 0:01:16]} bxc4 {[%emt 0:00:03][%mdl 4096] Endgame KR-KR} 27. Rg5 {[%emt 0:00:40]} c3 {[%emt 0:01:39]} 28. bxc3 {[%emt 0:00:36]} Ra4 {[%emt 0:00:12]} 29. f5 {[%emt 0:03:34]} Kf6 {[%emt 0:14:44]} 30. Rg4 {[%emt 0:00:23][%cal Oe4e5] [#] Threatens to win with e5+!} Ke7 {[%emt 0:15:14] aiming for ...exf5.} 31. Rg5 Rxe4 {[%emt 0:00:30] Strongly threatening ...Kf6.} 32. fxe6 {[%emt 0:45:48]} Rxe6 33. Rb5 {Weighted Error Value: White=0.11 (very precise) /Black=0.05 (flawless)} 1/2-1/2

[Event "10th Floripa Open 2024"]
[Site "Florianopolis"]
[Date "2024.01.23"]
[Round "4.8"]
[White "Perez Gormaz, Matias"]
[Black "Campos, Maria Jose"]
[Result "1-0"]
[ECO "C50"]
[WhiteElo "2388"]
[BlackElo "2208"]
[Annotator "TA"]
[PlyCount "63"]
[EventDate "2024.01.10"]
[EventType "swiss"]
[EventCountry "BRA"]
[SourceTitle "playchess.com"]
[Source "ChessBase"]
[SourceQuality "1"]
[TimeControl "5400+30"]

{[%evp 10,63,22,19,22,17,14,0,16,16,13,0,0,-39,14,-27,24,24,18,14,49,47,36,27,27,14,36,28,41,31,31,23,35,34,89,75,121,113,265,243,263,233,465,461,481,460,508,508,481,488,591,579,634,604,976,954]} 1. e4 {[%emt 0:00:27]} e5 {[%emt 0:00:27]} 2. Nf3 {[%emt 0:00:30]} Nc6 {[%emt 0:00:13]} 3. Bc4 {[%emt 0:00:23]} Nf6 {[%emt 0:00:20]} 4. d3 {[%emt 0:00:21]} Bc5 {[%emt 0:00:32]} 5. Nc3 {[%emt 0:00:22]} d6 {[%emt 0:02:22]} 6. Na4 {[%emt 0:00:46]} Bb6 {[%emt 0:01:27] C50: Hungarian Defence and Giuoco Pianissimo.} 7. a3 {[%emt 0:00:14]} h6 {[%emt 0:02:53]} 8. c3 {[%emt 0:01:53]} O-O {[%emt 0:01:45] The position is equal.} 9. O-O {[%emt 0:00:12]} Ne7 {[%emt 0:05:19]} 10. Re1 {[%emt 0:00:34]} Ng6 {[%emt 0:02:18] [#]} 11. Bb3 $146 {[%emt 0:00:42]} ({Predecessor:} 11. h3 Re8 12. Bb3 Ba5 13. Bc2 c6 14. b4 Bc7 15. c4 d5 16. exd5 cxd5 17. Nc3 {0-1 Abdusattorov,N (2688)-Nakamura,H (2760) Chess.com Rapid Wk22 Swiss 2022 (3)}) 11... Be6 {[%emt 0:01:55]} (11... Bxf2+ $15 12. Kxf2 b5) 12. Bc2 {[%emt 0:00:32]} Nh5 {[%emt 0:06:10]} ({Black should try} 12... Bxf2+ $1 13. Kxf2 b5) 13. Nxb6 $11 {[%emt 0:02:03]} axb6 {[%emt 0:00:16]} 14. d4 {[%emt 0:03:16]} Nf6 {[%emt 0:09:24]} 15. h3 {[%emt 0:03:17]} Re8 {[%emt 0:01:30]} 16. Be3 {[%emt 0:01:07]} b5 {[%emt 0:07:57]} 17. Qd2 {[%emt 0:02:35]} Qe7 {[%emt 0:06:14]} 18. Rad1 {[%emt 0:06:35]} Red8 {[%emt 0:02:20]} 19. Qc1 {[%emt 0:02:27]} Nh5 {[%emt 0:04:49]} 20. Kh2 {[%emt 0:04:53]} Qf6 {[%emt 0:01:22]} 21. Rd2 {[%emt 0:01:16]} Nhf4 {[%emt 0:02:48]} (21... Qe7 $14) 22. Qd1 $16 {[%emt 0:04:52]} b6 {[%emt 0:04:15] [#]} (22... c6 $142) 23. Ng1 $1 {[%emt 0:02:41]} h5 $2 {[%emt 0:03:42] A mistake that costs the game.} (23... Qg5 $2 24. g3 $18) (23... Nh4 $16) 24. g3 {[%emt 0:03:38]} c5 {[%emt 0:05:45]} (24... exd4 $2 25. cxd4 (25. Bxf4 dxc3 26. bxc3 Nxf4 $11) 25... Nxh3 26. Nxh3 $18) 25. Qf3 {[%emt 0:10:14]} ({But not} 25. gxf4 $6 exf4 26. Qxh5 fxe3 27. fxe3 cxd4 28. cxd4 Qh4 29. Qxh4 (29. Qxb5 $2 Qxe1 30. Qe2 Qh4 $19) 29... Nxh4 $16) 25... Qg5 $2 {[%emt 0:08:06]} (25... h4 {keeps fighting.} 26. dxe5 (26. gxf4 exf4 27. Rde2 fxe3 $16) 26... hxg3+ 27. fxg3 dxe5) 26. Ne2 $18 {[%emt 0:15:42][%mdl 64] Pin. White is clearly winning.} ({Stronger than} 26. gxf4 exf4 27. Qg2 Qxg2+ 28. Kxg2 fxe3 29. fxe3 Bc8 $14) 26... Bxh3 {[%emt 0:14:23]} 27. gxf4 {[%emt 0:04:51]} exf4 {[%emt 0:00:03] [#] Hoping for ...Bg4.} 28. Qxh3 {[%emt 0:00:21] Rg1 would be deadly.} fxe3 {[%emt 0:00:07]} 29. fxe3 {[%emt 0:00:12]} b4 {[%emt 0:02:31]} 30. axb4 {[%emt 0:02:12]} cxb4 {[%emt 0:00:02]} 31. Rg1 {[%emt 0:00:16]} Qa5 {[%emt 0:00:33]} 32. Bb3 {[%emt 0:00:20] Weighted Error Value: White=0.06 (flawless) /Black=0.47} 1-0

[Event "10th Floripa Open 2024"]
[Site "Florianopolis"]
[Date "2024.01.23"]
[Round "4.9"]
[White "Perdomo, Leandro"]
[Black "Takano, Nicholas Ryo"]
[Result "1/2-1/2"]
[ECO "E71"]
[WhiteElo "2382"]
[BlackElo "2172"]
[Annotator "TA"]
[PlyCount "123"]
[EventDate "2024.01.10"]
[EventType "swiss"]
[EventCountry "BRA"]
[SourceTitle "playchess.com"]
[Source "ChessBase"]
[SourceQuality "1"]
[TimeControl "5400+30"]

{[%evp 13,123,31,46,41,66,36,26,29,108,107,107,96,95,81,121,118,140,142,140,142,177,120,120,108,120,120,124,120,127,127,127,97,127,124,124,124,127,127,239,239,239,230,270,239,244,221,264,161,180,140,138,141,146,89,387,389,306,154,162,166,163,132,174,167,167,167,262,272,441,380,550,550,550,550,488,540,526,467,486,479,464,452,439,395,426,40,195,181,207,178,94,0,0,0,0,0,0,0,0,0,0,0,0,0,0,0,0,0,0,0,0,0]} 1. d4 {[%emt 0:00:02]} Nf6 {[%emt 0:01:24]} 2. c4 {[%emt 0:00:01]} g6 {[%emt 0:00:04]} 3. Nc3 {[%emt 0:00:03]} Bg7 {[%emt 0:00:05]} 4. e4 {[%emt 0:00:03]} d6 {[%emt 0:00:03]} 5. h3 {[%emt 0:00:37]} O-O {[%emt 0:00:45]} 6. Be3 {[%emt 0:00:04]} e5 {[%emt 0:01:01]} 7. d5 {[%emt 0:00:05]} a5 {[%emt 0:00:17]} 8. g4 {[%emt 0:00:18][%cal Bg2g4,Bg4g5][%mdl 32] E71: King's Indian: 4 e4 d6 5 h3.} Na6 {[%emt 0:00:13]} 9. Qd2 {[%emt 0:00:18]} Nc5 {[%emt 0:00:09]} 10. f3 {[%emt 0:00:03] White has an edge.} Ne8 {[%emt 0:00:48]} (10... c6 $1 $11) 11. h4 $16 {[%emt 0:28:31]} f5 {[%emt 0:00:51]} 12. g5 {[%emt 0:00:12]} f4 {[%emt 0:03:49]} 13. Bf2 {[%emt 0:00:14] [#]} Qe7 $146 {[%emt 0:02:56]} ({Predecessor:} 13... Bh8 14. Bh3 Ng7 15. Bxc5 dxc5 16. O-O-O Bxh3 17. Nxh3 Ne8 18. h5 Nd6 19. Qe2 Bg7 {1-0 Elsness,F (2459)-Mihajlov,S (2384) NOR-ch Oslo 2021 (7)}) 14. O-O-O {[%emt 0:05:27]} Rb8 {[%emt 0:02:07]} 15. Bh3 {[%emt 0:05:17]} Bxh3 {[%emt 0:00:35]} 16. Nxh3 {[%emt 0:15:22]} Qd7 {[%emt 0:02:29]} 17. Ng1 {[%emt 0:06:20]} (17. Bxc5 $18 dxc5 18. a4) 17... Na4 {[%emt 0:02:45]} 18. Nge2 {[%emt 0:00:50]} Nxc3 {[%emt 0:00:49]} 19. Nxc3 {[%emt 0:01:08]} h5 {[%emt 0:01:06]} 20. Kb1 {[%emt 0:08:36]} b6 {[%emt 0:01:43]} 21. Qc2 {[%emt 0:03:38]} Rf7 {[%emt 0:03:35]} 22. Qa4 {[%emt 0:00:27]} Qc8 {[%emt 0:01:11]} 23. Qc6 {[%emt 0:02:36]} Bf8 {[%emt 0:01:01]} 24. Rd3 {[%emt 0:06:32][%cal Bd1d3,Bd3a3,Ba3a4][%mdl 32]} Kg7 {[%emt 0:00:59]} 25. Nb5 {[%emt 0:00:35]} Qa6 {[%emt 0:04:43]} (25... Ra8 $16 26. Nc3 Re7) 26. Ra3 $18 {[%emt 0:00:25]} Qc8 {[%emt 0:00:19]} 27. Ra4 {[%emt 0:01:13]} Re7 {[%emt 0:03:17]} 28. Kc2 {[%emt 0:01:42][%cal Bb1c2,Bc2d2,Bd2e2,Be2f1,Bf1g2][%mdl 32]} Kf7 {[%emt 0:01:20]} 29. Kd2 {[%emt 0:05:51]} Ra8 {[%emt 0:01:46]} 30. Ke2 {[%emt 0:00:45] And now b4 would win.} Rd7 {[%emt 0:00:28]} 31. Kf1 {[%emt 0:01:18]} Rd8 {[%emt 0:00:20]} 32. Kg2 {[%emt 0:00:24]} Kg7 {[%emt 0:01:46]} 33. b4 {[%emt 0:01:38] White has more active pieces.} (33. Rd1 $142) 33... Ra6 $2 {[%emt 0:03:47][%mdl 8192] [#]} (33... axb4 $16 34. Rxa8 Qxa8) 34. Rb1 {[%emt 0:03:14]} Kf7 {[%emt 0:01:00]} 35. bxa5 {[%emt 0:00:33]} (35. Rb3 $18) 35... Qa8 $16 {[%emt 0:05:52]} (35... bxa5 $2 36. Na7 Rxc6 37. Nxc8 $18) 36. Qxa8 {[%emt 0:00:02]} ({And not} 36. Nxc7 Qxc6 37. dxc6 Nxc7 38. Bxb6 Rb8 $15) 36... Rdxa8 {[%emt 0:00:11]} 37. Be1 {[%emt 0:00:02]} Ke7 {[%emt 0:00:23]} 38. Na3 {[%emt 0:01:26][%cal Bb5a3,Ba3c2,Bc2b4,Bb4c6][%mdl 32]} Kd7 {[%emt 0:00:55]} 39. Nc2 {[%emt 0:00:22]} R6a7 {[%emt 0:01:52]} (39... bxa5 $142 40. Rb5 c5 41. Rbxa5 (41. Raxa5 Be7 $16) 41... Rxa5 42. Rxa5 Rxa5 43. Bxa5 Be7) 40. Rb5 $18 {[%emt 0:00:07]} Be7 $2 {[%emt 0:00:45]} (40... bxa5 {is a better defense.} 41. Raxa5 (41. Rbxa5 Rxa5 42. Rxa5 Rxa5 $16) (41. Bxa5 c6 $16) 41... Rxa5 42. Bxa5 (42. Rxa5 Rxa5 43. Bxa5 c5 $18) 42... c6 43. dxc6+ Kxc6 44. Nb4+ Kd7) 41. Nb4 {[%emt 0:00:22]} Rxa5 {[%emt 0:01:00]} (41... Rc8 $142 42. a6 Bf8) 42. Rbxa5 {[%emt 0:00:02]} Rxa5 {[%emt 0:00:09]} 43. Rxa5 {[%emt 0:00:02]} bxa5 {[%emt 0:00:05][%mdl 4096] Endgame KBN-KBN} 44. Nc6 {[%emt 0:00:30]} a4 {[%emt 0:00:01]} 45. Bb4 {[%emt 0:00:51]} Ng7 {[%emt 0:00:56]} 46. Kf1 {[%emt 0:00:33]} Bd8 {[%emt 0:00:35]} 47. Na7 {[%emt 0:05:19]} Ne8 {[%emt 0:01:16]} 48. Be1 {[%emt 0:00:00]} c5 {[%emt 0:02:19]} 49. Ke2 $2 {[%emt 0:00:00]} (49. dxc6+ $18 Ke7 50. Ke2) 49... Bb6 $2 {[%emt 0:01:02]} (49... Nc7 $14) 50. Nc6 {[%emt 0:00:00]} Nc7 {[%emt 0:03:07] [#]} 51. Bc3 $1 {[%emt 0:00:41][%cal Oc3e5] aiming for Bxe5!} Na6 {[%emt 0:02:35]} 52. a3 {[%emt 0:00:02]} ({Better is} 52. Bxe5 $16 {Hoping for Bf6.} dxe5 53. Nxe5+ Ke8 54. Nxg6) 52... Bc7 $11 {[%emt 0:00:11] The position is equal.} 53. Be1 {[%emt 0:01:16]} Bb6 {[%emt 0:03:23] Repels Na7} 54. Kd3 {[%emt 0:00:18]} Bd8 {[%emt 0:02:49]} 55. Na7 {[%emt 0:00:38]} Bb6 {[%emt 0:00:43]} 56. Nc6 {[%emt 0:00:01]} Bd8 {[%emt 0:00:11]} 57. Ke2 {[%emt 0:00:15]} Bb6 {[%emt 0:00:48]} 58. Kd1 {[%emt 0:00:21]} Bd8 {[%emt 0:01:52]} 59. Na7 {[%emt 0:00:22]} Nc7 {[%emt 0:01:01]} 60. Ke2 {[%emt 0:01:06]} Na8 $1 {[%emt 0:00:30]} 61. Nb5 {[%emt 0:00:16]} Bc7 {[%emt 0:01:02]} 62. Nc3 {[%emt 0:01:23] White really could win this.   Weighted Error Value: White=0.28 (precise) /Black=0.29 (precise)} 1/2-1/2

[Event "10th Floripa Open 2024"]
[Site "Florianopolis"]
[Date "2024.01.23"]
[Round "4.10"]
[White "Vazquez, Facundo"]
[Black "Bueno, Alfeu Junior Varela"]
[Result "1/2-1/2"]
[ECO "A40"]
[WhiteElo "2381"]
[BlackElo "2156"]
[Annotator "TA"]
[PlyCount "77"]
[EventDate "2024.01.10"]
[EventType "swiss"]
[EventCountry "BRA"]
[SourceTitle "playchess.com"]
[Source "ChessBase"]
[SourceQuality "1"]
[TimeControl "5400+30"]

{[%evp 9,77,18,38,28,19,28,124,106,144,56,67,67,68,59,103,101,96,96,116,113,123,97,104,66,90,67,77,68,87,0,0,0,0,0,0,15,0,2,24,9,353,329,397,385,376,370,427,404,388,342,414,228,229,213,198,130,246,165,206,46,51,33,45,10,27,0,0,0,0,0]} 1. d4 {[%emt 0:04:18]} e6 {[%emt 0:00:18]} 2. c4 {[%emt 0:00:23]} f5 {[%emt 0:00:12]} 3. a3 {[%emt 0:00:06]} b6 {[%emt 0:00:10]} 4. Nc3 {[%emt 0:00:10]} Bb7 {[%emt 0:00:05]} 5. Bf4 {[%emt 0:00:08]} Nf6 {[%emt 0:02:38]} 6. e3 {[%emt 0:00:23] A40: Unusual replies to 1 d4.} Be7 {[%emt 0:01:09]} 7. h4 {[%emt 0:02:29]} Ne4 {[%emt 0:02:38]} (7... O-O $11 {remains equal.}) 8. Nxe4 $16 {[%emt 0:04:08] White is better.} Bxe4 {[%emt 0:00:44] [#]} 9. Nf3 {[%emt 0:03:40]} (9. d5 $1 $16) 9... Bf6 {[%emt 0:18:30]} 10. Bd3 {[%emt 0:13:29] [#]} Bb7 $146 {[%emt 0:05:46]} ({Predecessor:} 10... Bxd3 11. Qxd3 O-O 12. O-O-O d5 13. g4 dxc4 14. Qxc4 Qd5 15. Qxd5 exd5 16. gxf5 Nc6 {1-0 Nowak,L (2319)-Lokander,M (2492) Legnica Voivoda Cup 36th 2022 (9)}) 11. Qc2 {[%emt 0:03:52]} Bxf3 {[%emt 0:05:21]} 12. gxf3 {[%emt 0:00:03]} O-O {[%emt 0:04:49]} 13. O-O-O {[%emt 0:01:26]} Kh8 {[%emt 0:11:43]} 14. Kb1 {[%emt 0:06:16] White is more active.} Qe7 {[%emt 0:06:33]} 15. Rdg1 {[%emt 0:16:36]} Nc6 {[%emt 0:03:32][%cal Bb8c6,Bc6e5,Be5c4][%mdl 32]} 16. Bg5 {[%emt 0:01:00]} ({Worse is} 16. Bxc7 d6 17. Bxd6 (17. d5 $2 Ne5 $19) 17... Qxd6 $17) 16... a6 {[%emt 0:01:20]} 17. d5 {[%emt 0:03:13]} Ne5 {[%emt 0:03:50]} 18. Be2 {[%emt 0:04:02]} b5 {[%emt 0:05:43]} 19. c5 {[%emt 0:00:17]} ({Much weaker is} 19. cxb5 axb5 20. Qxc7 exd5 $14) (19. dxe6 $16 Qxe6 20. Rc1 (20. cxb5 axb5 21. Bxf6 Qxf6 $11)) 19... exd5 $11 {[%emt 0:03:14]} 20. Qxf5 {[%emt 0:01:47]} c6 {[%emt 0:02:08][%cal Oe5f3]} 21. f4 {[%emt 0:05:39]} Nc4 {[%emt 0:01:17]} 22. Bd3 $36 {[%emt 0:02:39][%csl Gd3][%cal Rf5h7][%mdl 2048] [#] White is pushing.} g6 {[%emt 0:07:02]} 23. Bxf6+ {[%emt 0:00:28]} Rxf6 {[%emt 0:01:46]} 24. Qg4 {[%emt 0:00:38] next Qe2 is good for White.} Qg7 $2 {[%emt 0:02:56][%mdl 8192]} (24... Nd2+ $11 25. Ka2 d4) 25. Qe2 $18 {[%emt 0:00:29]} Qf7 {[%emt 0:06:10]} 26. h5 {[%emt 0:01:04]} g5 {[%emt 0:00:57]} 27. Rxg5 {[%emt 0:00:26]} Rg8 {[%emt 0:01:43]} 28. Rhg1 {[%emt 0:01:56]} Rxg5 {[%emt 0:00:27]} 29. Rxg5 {[%emt 0:00:02]} Re6 {[%emt 0:00:21]} 30. Bxc4 {[%emt 0:04:39]} (30. Ka2 $142) 30... bxc4 {[%emt 0:00:38][%mdl 4096] Endgame KQR-KQR} 31. Qd2 {[%emt 0:00:36] Threatens to win with Qc3+.} h6 {[%emt 0:00:58]} 32. Rg1 {[%emt 0:03:15]} ({White should try} 32. Qc3+ $18 Kh7 33. Rg1) 32... Qf5+ {[%emt 0:01:13]} (32... Rf6 $16) 33. Ka2 {[%emt 0:00:08] Qc3+ would be deadly.} Re7 {[%emt 0:00:28]} 34. Qd4+ $2 {[%emt 0:02:07]} (34. Qd1 $18) 34... Kh7 $14 {[%emt 0:00:05]} 35. Qd1 {[%emt 0:05:05] Qb1 is the strong threat.} Rg7 {[%emt 0:00:34]} 36. Rxg7+ {[%emt 0:01:23]} (36. Re1 $5 {[%cal Rd1b1]}) 36... Kxg7 {[%emt 0:00:01]} 37. Qf3 {[%emt 0:00:37]} Qc2 {[%emt 0:00:44] ( -> ...c3)} 38. Qg4+ {[%emt 0:05:59]} Kf6 {[%emt 0:00:21] Strongly threatening ...c3.} 39. Qxd7 {[%emt 0:05:04] Weighted Error Value: White=0.32/Black=0.41} 1/2-1/2